bitfinex-derivatives/quotes_BTCF0:USTF0_20241006
["timestamp","ask_amount","ask_price","bid_price","bid_amount"]
[1728186230166,0.0643,61986.0,61985.0,0.071934]
[1728186231356,0.4251,61986.0,61985.0,0.071934]
[1728186232255,0.0643,61986.0,61985.0,0.071934]
[1728186232457,0.4251,61986.0,61985.0,0.071934]
[1728186234968,0.0643,61986.0,61985.0,0.071934]
[1728186235158,0.4251,61986.0,61985.0,0.071934]
[1728186235470,0.0643,61986.0,61985.0,0.071934]
[1728186235663,0.4251,61986.0,61985.0,0.071934]
[1728186235968,0.0643,61986.0,61985.0,0.071934]
[1728186236168,0.4251,61986.0,61985.0,0.071934]
[1728186236359,0.4251,61986.0,61985.0,0.0074]
[1728186238462,0.0643,61986.0,61985.0,0.0074]
[1728186238664,0.4251,61986.0,61985.0,0.0074]
[1728186241268,0.0643,61986.0,61985.0,0.0074]
[1728186241471,0.4251,61986.0,61985.0,0.0074]
[1728186241866,0.0643,61986.0,61985.0,0.0074]
[1728186242175,0.4251,61986.0,61985.0,0.0074]
[1728186242373,0.0643,61986.0,61985.0,0.0074]
[1728186242567,0.4251,61986.0,61985.0,0.0074]
[1728186242880,0.0643,61986.0,61985.0,0.0074]
[1728186243100,0.4251,61986.0,61985.0,0.0074]
[1728186243673,0.0643,61986.0,61985.0,0.0074]
[1728186243978,0.4251,61986.0,61985.0,0.0074]
[1728186244880,0.0643,61986.0,61985.0,0.0074]
[1728186245180,0.54686281,61986.0,61985.0,0.0074]
[1728186246279,0.54686211,61986.0,61985.0,0.0074]
[1728186247073,0.18606211,61986.0,61985.0,0.0074]
[1728186247673,0.54686211,61986.0,61985.0,0.0074]
[1728186248474,0.18606211,61986.0,61985.0,0.0074]
[1728186248668,0.54686211,61986.0,61985.0,0.0074]
[1728186249781,0.61139511,61986.0,61985.0,0.0074]
[1728186251083,0.61138894,61986.0,61985.0,0.0074]
[1728186253180,0.489633,61986.0,61985.0,0.11895043]
[1728186254783,0.128833,61986.0,61985.0,0.25185037]
[1728186254975,0.489633,61986.0,61985.0,0.11895043]
[1728186255175,0.489633,61986.0,61985.0,0.25185586]
[1728186255576,0.489633,61986.0,61985.0,0.25191234]
[1728186256081,0.489633,61986.0,61985.0,0.25181819]
[1728186256383,0.489633,61986.0,61985.0,0.1189066]
[1728186256679,0.489633,61986.0,61985.0,0.25182228]
[1728186257273,0.489633,61986.0,61985.0,0.25181886]
[1728186257477,0.489633,61986.0,61985.0,0.1189066]
[1728186257679,0.489633,61986.0,61985.0,0.25186505]
[1728186258993,0.489633,61986.0,61985.0,0.1189066]
[1728186260982,0.489633,61986.0,61985.0,0.11894267]
[1728186261176,0.489633,61986.0,61984.0,0.07059582]
[1728186261177,1.573633,61986.0,61984.0,0.07059582]
[1728186261378,0.1104,61985.0,61984.0,0.06455635]
[1728186261685,0.064537,61983.0,61982.0,0.0075]
[1728186261996,0.064538,61982.0,61981.0,0.0004]
[1728186262179,0.174938,61982.0,61981.0,0.0004]
[1728186264189,0.175938,61982.0,61981.0,0.04877422]
[1728186265183,0.897538,61982.0,61981.0,0.04877422]
[1728186265889,0.175938,61982.0,61981.0,0.04877422]
[1728186266090,0.92602912,61982.0,61981.0,0.04877422]
[1728186266291,0.92602912,61982.0,61981.0,0.04876144]
[1728186266491,0.92602912,61982.0,61981.0,0.0004]
[1728186266987,0.20442912,61982.0,61981.0,0.0004]
[1728186267193,0.92602912,61982.0,61981.0,0.0004]
[1728186268289,1.04821303,61982.0,61981.0,0.0004]
[1728186269491,0.32661303,61982.0,61981.0,0.0004]
[1728186269693,1.04821303,61982.0,61981.0,0.0004]
[1728186270392,1.04820695,61982.0,61981.0,0.0004]
[1728186270585,0.32660695,61982.0,61981.0,0.0004]
[1728186270894,1.04820695,61982.0,61981.0,0.0004]
[1728186271091,0.32660695,61982.0,61981.0,0.0004]
[1728186271290,1.04820695,61982.0,61981.0,0.0004]
[1728186272288,0.32660695,61982.0,61981.0,0.0004]
[1728186272493,1.04820695,61982.0,61981.0,0.0004]
[1728186272796,0.32660695,61982.0,61981.0,0.0004]
[1728186273108,1.04820695,61982.0,61981.0,0.0004]
[1728186273794,0.32660695,61982.0,61981.0,0.0004]
[1728186274189,1.04820695,61982.0,61981.0,0.0004]
[1728186274994,0.32660695,61982.0,61981.0,0.0004]
[1728186275186,1.04820695,61982.0,61981.0,0.0004]
[1728186275385,0.92602912,61982.0,61981.0,0.0004]
[1728186278287,0.92642912,61982.0,61981.0,0.0004]
[1728186278693,0.20482912,61982.0,61981.0,0.0004]
[1728186279387,0.92642912,61982.0,61981.0,0.0004]
[1728186280000,0.20482912,61982.0,61981.0,0.0004]
[1728186280198,0.92642912,61982.0,61981.0,0.0004]
[1728186280612,0.20482912,61982.0,61981.0,0.0004]
[1728186280897,0.92642912,61982.0,61981.0,0.0004]
[1728186281797,0.20482912,61982.0,61981.0,0.0004]
[1728186282097,0.92642912,61982.0,61981.0,0.0004]
[1728186283296,0.99916809,61982.0,61981.0,0.0004]
[1728186284100,0.27756809,61982.0,61981.0,0.0004]
[1728186284306,0.32709172,61982.0,61981.0,0.0004]
[1728186284501,1.04869172,61982.0,61981.0,0.0004]
[1728186284895,0.32709172,61982.0,61981.0,0.0004]
[1728186285095,1.04869714,61982.0,61981.0,0.0004]
[1728186285602,0.32709714,61982.0,61981.0,0.0004]
[1728186285790,1.04869714,61982.0,61981.0,0.0004]
[1728186286391,1.19358978,61982.0,61981.0,0.0004]
[1728186287400,0.47198978,61982.0,61981.0,0.0004]
[1728186287702,1.19358978,61982.0,61981.0,0.0004]
[1728186288794,0.47198978,61982.0,61981.0,0.0004]
[1728186289002,1.19358978,61982.0,61981.0,0.0004]
[1728186289305,1.04869714,61982.0,61981.0,0.0004]
[1728186290395,0.92642912,61982.0,61981.0,0.11148246]
[1728186290794,0.20482912,61982.0,61981.0,0.11148246]
[1728186291001,0.92642912,61982.0,61981.0,0.11148246]
[1728186291694,0.20482912,61982.0,61981.0,0.11148246]
[1728186291896,0.92642912,61982.0,61981.0,0.11148246]
[1728186292403,0.20482912,61982.0,61981.0,0.11148246]
[1728186292708,0.92642912,61982.0,61981.0,0.11148246]
[1728186293889,0.20482912,61982.0,61981.0,0.11148246]
[1728186294090,0.92642912,61982.0,61981.0,0.11148246]
[1728186294293,0.81642912,61982.0,61981.0,0.11148246]
[1728186294497,0.92642912,61982.0,61981.0,0.11148246]
[1728186294904,0.92642912,61982.0,61981.0,0.11152328]
[1728186297405,0.32711889,61982.0,61981.0,0.0004]
[1728186297706,1.04871889,61982.0,61981.0,0.0004]
[1728186298098,0.32711889,61982.0,61981.0,0.0004]
[1728186298297,1.04871889,61982.0,61981.0,0.0004]
[1728186298701,0.32711889,61982.0,61981.0,0.0004]
[1728186298908,1.04871889,61982.0,61981.0,0.0004]
[1728186300711,1.00700603,61982.0,61981.0,0.064939]
[1728186300903,0.84568977,61982.0,61981.0,0.064939]
[1728186302298,0.99081838,61982.0,61981.0,0.064939]
[1728186302505,0.86665572,61982.0,61981.0,0.064939]
[1728186303214,0.86679359,61982.0,61981.0,0.064939]
[1728186303717,0.86679314,61982.0,61981.0,0.064939]
[1728186304097,0.50599314,61982.0,61981.0,0.064939]
[1728186305306,0.4726,61982.0,61981.0,0.17592038]
[1728186306611,0.4726,61982.0,61981.0,0.27275442]
[1728186306811,0.537138,61982.0,61981.0,0.0004]
[1728186307115,0.598738,61982.0,61981.0,0.0004]
[1728186308310,0.959538,61982.0,61981.0,0.0004]
[1728186309111,0.237938,61982.0,61981.0,0.0004]
[1728186309316,0.959538,61982.0,61981.0,0.0004]
[1728186310919,0.06454,61980.0,61979.0,0.0075]
[1728186311113,0.1104,61980.0,61976.0,0.05589065]
[1728186311309,0.174943,61977.0,61976.0,0.0075]
[1728186311511,0.064544,61976.0,61975.0,0.04879065]
[1728186311713,0.786544,61976.0,61975.0,0.04879065]
[1728186312308,1.0696412,61976.0,61975.0,0.0004]
[1728186313024,1.0706412,61976.0,61975.0,0.0004]
[1728186314312,0.90932494,61976.0,61975.0,0.0004]
[1728186315410,0.93825607,61976.0,61975.0,0.0004]
[1728186320418,0.81647513,61976.0,61975.0,0.0004]
[1728186320822,0.09487513,61976.0,61975.0,0.0004]
[1728186321020,0.81647513,61976.0,61975.0,0.0004]
[1728186321825,0.09487513,61976.0,61975.0,0.0004]
[1728186322126,0.81647513,61976.0,61975.0,0.0004]
[1728186323222,0.81687513,61976.0,61975.0,0.0004]
[1728186323720,0.09527513,61976.0,61975.0,0.0004]
[1728186323926,0.81687513,61976.0,61975.0,0.0004]
[1728186331840,0.09527513,61976.0,61975.0,0.0004]
[1728186332029,0.81687513,61976.0,61975.0,0.0004]
[1728186335431,0.99639175,61976.0,61973.0,0.00337079]
[1728186335638,0.174946,61974.0,61973.0,0.00337079]
[1728186335834,0.29658326,61974.0,61973.0,0.00337079]
[1728186336932,1.01818326,61974.0,61973.0,0.00337079]
[1728186337134,1.07606262,61974.0,61973.0,0.00337079]
[1728186337737,1.07604999,61974.0,61973.0,0.00437079]
[1728186338327,1.07604999,61974.0,61973.0,0.00337079]
[1728186338528,1.07604999,61974.0,61973.0,0.00437079]
[1728186342534,0.896546,61974.0,61973.0,0.05276144]
[1728186350551,0.896546,61974.0,61973.0,0.00437079]
[1728186351534,0.786546,61974.0,61973.0,0.00437079]
[1728186351741,0.786546,61974.0,61973.0,0.05276144]
[1728186351946,0.786546,61974.0,61973.0,0.00437079]
[1728186352641,0.786546,61974.0,61973.0,0.05279169]
[1728186353343,0.786946,61974.0,61973.0,0.05279169]
[1728186353537,0.786946,61974.0,61973.0,0.00437079]
[1728186354252,0.065346,61974.0,61973.0,0.00437079]
[1728186354447,0.786946,61974.0,61973.0,0.00437079]
[1728186355235,0.065346,61974.0,61973.0,0.05277888]
[1728186355442,0.786946,61974.0,61973.0,0.04940809]
[1728186356144,0.786946,61974.0,61973.0,0.001]
[1728186356347,0.065346,61974.0,61973.0,0.001]
[1728186356653,0.786946,61974.0,61973.0,0.001]
[1728186357443,0.90869476,61974.0,61973.0,0.001]
[1728186358935,0.18709476,61974.0,61973.0,0.001]
[1728186359140,0.90869476,61974.0,61973.0,0.001]
[1728186359558,1.06979392,61974.0,61973.0,0.001]
[1728186361441,0.96656974,61974.0,61973.0,0.001]
[1728186361643,1.14389371,61974.0,61973.0,0.001]
[1728186362550,1.14389371,61974.0,61973.0,0.111]
[1728186362551,1.02147273,61974.0,61973.0,0.111]
[1728186362853,0.84414876,61974.0,61973.0,0.175547]
[1728186363148,0.98915491,61974.0,61973.0,0.175547]
[1728186363351,0.84414876,61974.0,61973.0,0.175547]
[1728186364057,0.84414876,61974.0,61973.0,0.111]
[1728186364238,0.98915491,61974.0,61973.0,0.111]
[1728186364556,0.84414876,61974.0,61973.0,0.111]
[1728186365446,0.98915491,61974.0,61973.0,0.001]
[1728186365642,0.7224,61974.0,61973.0,0.11242367]
[1728186365841,0.0008,61974.0,61973.0,0.0816321]
[1728186366042,0.7224,61974.0,61973.0,0.0816321]
[1728186369458,0.7224,61974.0,61973.0,0.19305966]
[1728186370549,0.7224,61974.0,61973.0,0.19306159]
[1728186372254,0.0008,61974.0,61973.0,0.19306159]
[1728186372459,0.7224,61974.0,61973.0,0.19306159]
[1728186372659,0.7224,61974.0,61973.0,0.001]
[1728186372660,0.79465203,61974.0,61973.0,0.001]
[1728186374059,0.90465203,61974.0,61973.0,0.001]
[1728186375262,0.18303002,61974.0,61973.0,0.001]
[1728186375465,0.90463002,61974.0,61973.0,0.001]
[1728186378366,0.96917602,61974.0,61973.0,0.001]
[1728186380060,0.896946,61974.0,61973.0,0.001]
[1728186380266,0.24759038,61974.0,61973.0,0.001]
[1728186380565,0.896946,61974.0,61973.0,0.11251325]
[1728186382461,0.175346,61974.0,61973.0,0.11251325]
[1728186382662,0.896946,61974.0,61973.0,0.11251325]
[1728186385357,0.896946,61974.0,61973.0,0.20936997]
[1728186386274,0.175346,61974.0,61973.0,0.20936997]
[1728186386471,0.896946,61974.0,61973.0,0.20936997]
[1728186387372,0.175346,61974.0,61973.0,0.20936997]
[1728186387579,0.96921509,61974.0,61973.0,0.001]
[1728186388566,0.24761509,61974.0,61973.0,0.001]
[1728186388767,0.96921509,61974.0,61973.0,0.001]
[1728186390373,0.24761509,61974.0,61973.0,0.001]
[1728186390572,0.96921509,61974.0,61973.0,0.001]
[1728186390781,0.24761509,61974.0,61973.0,0.001]
[1728186390976,0.92970088,61974.0,61973.0,0.001]
[1728186391683,0.92970088,61974.0,61971.0,0.0004]
[1728186391684,0.064548,61972.0,61971.0,0.0004]
[1728186391884,0.20770288,61972.0,61971.0,0.0004]
[1728186392407,0.23790288,61972.0,61971.0,0.0004]
[1728186394299,0.23890288,61972.0,61971.0,0.0004]
[1728186394801,0.96050288,61972.0,61971.0,0.0004]
[1728186394998,0.99253458,61972.0,61971.0,0.0004]
[1728186395689,0.960048,61972.0,61971.0,0.0004]
[1728186396795,0.959048,61972.0,61971.0,0.0004]
[1728186396996,0.960048,61972.0,61971.0,0.0004]
[1728186397200,0.959048,61972.0,61971.0,0.0004]
[1728186397400,0.960048,61972.0,61971.0,0.0004]
[1728186398193,0.960448,61972.0,61971.0,0.0004]
[1728186402309,2.044528,61972.0,61971.0,0.0004]
[1728186410600,2.11625099,61972.0,61970.0,0.00482025]
[1728186410803,0.84761412,61971.0,61970.0,0.00482025]
[1728186411409,1.44761412,61971.0,61970.0,0.00482025]
[1728186411608,0.84761412,61971.0,61970.0,0.00482025]
[1728186411903,0.84861412,61971.0,61970.0,0.00482025]
[1728186412314,0.90649953,61971.0,61970.0,0.00482025]
[1728186412712,1.57021412,61971.0,61970.0,0.00482025]
[1728186413109,1.57121412,61971.0,61970.0,0.00482025]
[1728186413408,1.62909925,61971.0,61970.0,0.00482025]
[1728186413599,1.57121412,61971.0,61970.0,0.00482025]
[1728186413806,0.84961412,61971.0,61970.0,0.00482025]
[1728186414311,1.62909926,61971.0,61970.0,0.00482025]
[1728186415013,1.14501926,61971.0,61970.0,0.00482025]
[1728186415510,0.96767914,61971.0,61970.0,0.00482025]
[1728186417811,0.066949,61971.0,61970.0,0.00482025]
[1728186418009,0.788549,61971.0,61970.0,0.00482025]
[1728186419912,0.066949,61971.0,61970.0,0.00482025]
[1728186420116,0.788549,61971.0,61970.0,0.00482025]
[1728186420306,0.066949,61971.0,61970.0,0.00482025]
[1728186420709,0.788549,61971.0,61970.0,0.00482025]
[1728186421310,0.066949,61971.0,61970.0,0.00482025]
[1728186421703,0.788549,61971.0,61970.0,0.00482025]
[1728186424019,0.066949,61971.0,61970.0,0.00482025]
[1728186424215,0.788549,61971.0,61970.0,0.00482025]
[1728186424416,0.066949,61971.0,61970.0,0.00482025]
[1728186424723,0.788549,61971.0,61970.0,0.00482025]
[1728186425622,0.066949,61971.0,61970.0,0.00482025]
[1728186425816,0.066949,61971.0,61970.0,0.00294347]
[1728186425817,0.18820834,61971.0,61970.0,0.00294347]
[1728186426018,0.96769356,61971.0,61970.0,0.00294347]
[1728186426409,0.24609356,61971.0,61970.0,0.00294347]
[1728186426814,0.96769356,61971.0,61970.0,0.00294347]
[1728186427418,0.24609356,61971.0,61970.0,0.00294347]
[1728186427621,0.96769356,61971.0,61970.0,0.00294347]
[1728186428515,0.96809356,61971.0,61970.0,0.00294347]
[1728186429220,0.60729356,61971.0,61970.0,0.00294347]
[1728186429423,0.96809356,61971.0,61970.0,0.00294347]
[1728186430218,0.24649356,61971.0,61970.0,0.00294347]
[1728186430629,0.96809356,61971.0,61970.0,0.00294347]
[1728186432521,0.24649356,61971.0,61970.0,0.00294347]
[1728186432721,0.96809356,61971.0,61970.0,0.00294347]
[1728186432923,0.788949,61971.0,61970.0,0.00294347]
[1728186433631,0.788949,61971.0,61953.0,0.0004]
[1728186433632,0.064564,61957.0,61953.0,0.0004]
[1728186433819,0.064567,61954.0,61953.0,0.0004]
[1728186434019,0.174967,61954.0,61953.0,0.0004]
[1728186434823,0.0004,61954.0,61953.0,0.0004]
[1728186435022,0.1104,61954.0,61953.0,0.0004]
[1728186435925,0.1395414,61954.0,61953.0,0.0004]
[1728186436113,0.1425414,61954.0,61953.0,0.0004]
[1728186436318,0.2071084,61954.0,61953.0,0.0004]
[1728186436729,0.2091084,61954.0,61953.0,0.0004]
[1728186437425,0.2101084,61954.0,61953.0,0.0004]
[1728186439727,0.9317084,61954.0,61953.0,0.0004]
[1728186441819,0.2101084,61954.0,61953.0,0.0004]
[1728186442133,0.9321084,61954.0,61953.0,0.0004]
[1728186443022,0.2105084,61954.0,61953.0,0.0004]
[1728186443424,0.9321084,61954.0,61953.0,0.0004]
[1728186444325,0.2105084,61954.0,61953.0,0.0004]
[1728186444634,0.9321084,61954.0,61953.0,0.0004]
[1728186445434,0.2105084,61954.0,61953.0,0.0004]
[1728186445826,0.9321084,61954.0,61953.0,0.0004]
[1728186446033,0.2105084,61954.0,61953.0,0.0004]
[1728186446229,0.9321084,61954.0,61953.0,0.0004]
[1728186455533,0.9321084,61954.0,61940.0,0.0038]
[1728186455738,0.9321084,61954.0,61938.0,0.0629]
[1728186455739,0.1104,61941.0,61938.0,0.0629]
[1728186456044,0.1104,61939.0,61938.0,0.0629]
[1728186456743,0.1108,61939.0,61938.0,0.0629]
[1728186457751,0.1108,61939.0,61938.0,0.17100344]
[1728186458241,0.1112,61939.0,61938.0,0.17100344]
[1728186458434,0.1112,61939.0,61938.0,0.0629]
[1728186458634,0.175782,61939.0,61938.0,0.0629]
[1728186459541,0.536582,61939.0,61938.0,0.0629]
[1728186460340,0.540582,61939.0,61938.0,0.0629]
[1728186460531,0.544582,61939.0,61938.0,0.0629]
[1728186461533,0.544582,61939.0,61938.0,0.17118133]
[1728186462540,0.544582,61939.0,61938.0,0.10828133]
[1728186462942,0.544582,61939.0,61934.0,0.0325]
[1728186462943,0.064585,61937.0,61934.0,0.0325]
[1728186463146,0.0004,61935.0,61934.0,0.0325]
[1728186463541,0.0004,61935.0,61934.0,1.1169]
[1728186463940,0.0004,61935.0,61934.0,0.6325]
[1728186464248,0.0004,61935.0,61934.0,1.1169]
[1728186464632,0.0004,61935.0,61934.0,0.5169]
[1728186464839,0.0014,61935.0,61934.0,0.5169]
[1728186465139,0.0024,61935.0,61934.0,0.5169]
[1728186465949,0.0024,61935.0,61934.0,0.0325]
[1728186466550,0.3632,61935.0,61934.0,0.0325]
[1728186466844,0.0024,61935.0,61934.0,0.0325]
[1728186467036,0.3632,61935.0,61934.0,0.0325]
[1728186470951,0.3632,61935.0,61934.0,0.23763562]
[1728186471961,0.3632,61935.0,61934.0,0.23763292]
[1728186473359,0.3636,61935.0,61934.0,0.23763292]
[1728186475160,0.0028,61935.0,61934.0,0.23763292]
[1728186475356,0.3636,61935.0,61934.0,0.23763292]
[1728186476053,0.428187,61935.0,61934.0,0.23763292]
[1728186477462,0.067387,61935.0,61934.0,0.23763292]
[1728186477655,0.428187,61935.0,61934.0,0.23763292]
[1728186477847,0.428187,61935.0,61934.0,0.14105526]
[1728186479758,0.067387,61935.0,61934.0,0.14105526]
[1728186480051,0.428187,61935.0,61934.0,0.14105526]
[1728186481459,0.067387,61935.0,61934.0,0.14105526]
[1728186481952,0.428187,61935.0,61934.0,0.14105526]
[1728186482153,0.3636,61935.0,61934.0,0.14105526]
[1728186483457,0.3636,61935.0,61934.0,0.31564326]
[1728186483655,0.3636,61935.0,61934.0,0.25105526]
[1728186483961,0.3636,61935.0,61934.0,0.14105526]
[1728186484167,0.3636,61935.0,61934.0,0.14109029]
[1728186484663,0.3636,61935.0,61934.0,1.40007829]
[1728186484967,0.3636,61935.0,61934.0,1.52941563]
[1728186485157,0.30705336,61935.0,61934.0,1.52941563]
[1728186485857,0.30705336,61935.0,61934.0,1.41941563]
[1728186486163,0.25898684,61935.0,61934.0,1.52941563]
[1728186487560,0.25898684,61935.0,61934.0,1.291488]
[1728186487766,0.25898684,61935.0,61934.0,1.52731584]
[1728186488464,0.25938684,61935.0,61934.0,1.52731584]
[1728186488768,0.25938684,61935.0,61934.0,1.789113]
[1728186488962,0.25938684,61935.0,61934.0,1.78909573]
[1728186489464,0.0012,61939.0,61934.0,1.78908481]
[1728186489666,0.0012,61939.0,61938.0,0.174983]
[1728186489867,0.0012,61939.0,61938.0,0.41079643]
[1728186490061,0.0012,61939.0,61938.0,1.49515643]
[1728186490462,0.0004,61941.0,61939.0,0.064582]
[1728186490656,0.0004,61941.0,61940.0,0.064581]
[1728186490860,0.0004,61941.0,61940.0,0.78511443]
[1728186491058,0.0004,61941.0,61940.0,1.38511443]
[1728186491461,0.0008,61941.0,61940.0,1.38511443]
[1728186491862,0.0018,61941.0,61940.0,1.38511443]
[1728186492059,0.0038,61946.0,61941.0,0.48432]
[1728186492362,0.62156498,61957.0,61947.0,0.064574]
[1728186492363,0.0038,61949.0,61947.0,0.064574]
[1728186492664,0.128268,61953.0,61947.0,0.2692841]
[1728186493569,0.00282204,61948.0,61947.0,0.172555]
[1728186493863,0.00282204,61948.0,61947.0,0.17211416]
[1728186494366,0.00382204,61948.0,61947.0,0.17311416]
[1728186494562,0.00482204,61948.0,61947.0,0.17411416]
[1728186495365,0.00482204,61948.0,61947.0,0.20281725]
[1728186495568,0.00482204,61948.0,61947.0,0.17411416]
[1728186496582,0.00482204,61948.0,61947.0,0.25466173]
[1728186498061,0.00522204,61948.0,61947.0,0.25466173]
[1728186498468,0.00522204,61948.0,61947.0,0.25459845]
[1728186499371,0.00522204,61948.0,61947.0,0.066974]
[1728186500458,0.00522204,61948.0,61947.0,0.0024]
[1728186500659,0.06979504,61948.0,61947.0,0.0024]
[1728186501769,0.46119504,61948.0,61947.0,0.0024]
[1728186502161,0.10039504,61948.0,61947.0,0.0024]
[1728186502367,0.46119504,61948.0,61947.0,0.0024]
[1728186505673,0.10039504,61948.0,61947.0,0.0024]
[1728186505867,0.46119504,61948.0,61947.0,0.0024]
[1728186507084,0.10039504,61948.0,61947.0,0.0024]
[1728186507285,0.46119504,61948.0,61947.0,0.0024]
[1728186508181,0.46119504,61948.0,61947.0,0.08294757]
[1728186508380,0.46119504,61948.0,61947.0,0.19010064]
[1728186511277,0.46119504,61948.0,61947.0,0.08294757]
[1728186511592,0.46119504,61948.0,61947.0,0.19018672]
[1728186511782,0.10039504,61948.0,61947.0,0.19018672]
[1728186512091,0.46119504,61948.0,61947.0,0.19018672]
[1728186512478,0.46119504,61948.0,61947.0,0.10963915]
[1728186515085,0.46119504,61948.0,61947.0,0.0024]
[1728186518187,0.46159504,61948.0,61947.0,0.0024]
[1728186518585,0.39702204,61948.0,61947.0,0.0024]
[1728186518791,0.39702204,61948.0,61947.0,0.066974]
[1728186519597,0.36642204,61948.0,61947.0,0.066974]
[1728186520101,0.00562204,61948.0,61947.0,0.066974]
[1728186520596,0.36642204,61948.0,61947.0,0.066974]
[1728186521187,0.00562204,61948.0,61947.0,0.066974]
[1728186521491,0.36642204,61948.0,61947.0,0.066974]
[1728186522100,0.00562204,61948.0,61947.0,0.066974]
[1728186522497,0.36642204,61948.0,61947.0,0.066974]
[1728186522996,0.36642204,61948.0,61947.0,0.17439151]
[1728186523297,0.00562204,61948.0,61947.0,0.17439151]
[1728186523490,0.36642204,61948.0,61947.0,0.17439151]
[1728186525492,0.36642204,61948.0,61947.0,0.3024285]
[1728186527201,0.00562204,61948.0,61947.0,0.3024285]
[1728186527400,0.36642204,61948.0,61947.0,0.3024285]
[1728186527593,0.00562204,61948.0,61947.0,0.3024285]
[1728186528401,0.36642204,61948.0,61947.0,0.3024285]
[1728186532309,0.00562204,61948.0,61947.0,0.3024285]
[1728186532510,0.00562204,61948.0,61947.0,0.30247757]
[1728186532807,0.36642204,61948.0,61947.0,0.30247757]
[1728186533306,0.36682204,61948.0,61947.0,0.30247757]
[1728186533500,0.00602204,61948.0,61947.0,0.30247757]
[1728186533808,0.36682204,61948.0,61947.0,0.30247757]
[1728186535205,0.00602204,61948.0,61947.0,0.30247757]
[1728186535712,0.36682204,61948.0,61947.0,0.30247757]
[1728186536093,0.00602204,61948.0,61947.0,0.30247757]
[1728186536898,0.00602204,61948.0,61947.0,0.17441364]
[1728186537108,0.36682204,61948.0,61947.0,0.17441364]
[1728186537502,0.00602204,61948.0,61947.0,0.17441997]
[1728186537710,0.36682204,61948.0,61947.0,0.17441997]
[1728186538008,0.36682204,61948.0,61947.0,0.066974]
[1728186540116,0.43139504,61948.0,61947.0,0.0024]
[1728186545213,0.43139504,61948.0,61947.0,0.109859]
[1728186545916,0.43139504,61948.0,61947.0,0.10985724]
[1728186548517,0.43179504,61948.0,61947.0,0.10985724]
[1728186550109,0.43179504,61948.0,61947.0,0.19059611]
[1728186550616,0.07099504,61948.0,61947.0,0.19059611]
[1728186550819,0.79259504,61948.0,61947.0,0.19059611]
[1728186551206,0.07099504,61948.0,61947.0,0.19059611]
[1728186551406,0.79259504,61948.0,61947.0,0.19059611]
[1728186552217,0.79259504,61948.0,61947.0,0.08313887]
[1728186552814,0.79259504,61948.0,61947.0,0.19072885]
[1728186553121,0.87359255,61948.0,61947.0,0.0024]
[1728186555523,0.87357842,61948.0,61947.0,0.0024]
[1728186556108,0.51277842,61948.0,61947.0,0.0024]
[1728186556817,0.15197842,61948.0,61947.0,0.0024]
[1728186557024,0.51277842,61948.0,61947.0,0.0024]
[1728186557917,0.15197842,61948.0,61947.0,0.0024]
[1728186558122,0.51277842,61948.0,61947.0,0.0024]
[1728186559610,0.15197842,61948.0,61947.0,0.0024]
[1728186559814,0.51277842,61948.0,61947.0,0.0024]
[1728186560211,0.15197842,61948.0,61947.0,0.0024]
[1728186560416,0.51277842,61948.0,61947.0,0.0024]
[1728186560619,0.15197842,61948.0,61947.0,0.0024]
[1728186560822,0.51277842,61948.0,61947.0,0.0024]
[1728186561222,0.43179504,61948.0,61947.0,0.0024]
[1728186562713,0.07099504,61948.0,61947.0,0.0024]
[1728186563224,0.43219504,61948.0,61947.0,0.0024]
[1728186564227,0.07139504,61948.0,61947.0,0.0024]
[1728186564921,0.43219504,61948.0,61947.0,0.0024]
[1728186567232,0.07139504,61948.0,61947.0,0.0024]
[1728186567431,0.43219504,61948.0,61947.0,0.0024]
[1728186567828,0.07139504,61948.0,61947.0,0.0024]
[1728186568030,0.43219504,61948.0,61947.0,0.0024]
[1728186568227,0.56271941,61948.0,61947.0,0.0024]
[1728186568431,0.70786564,61948.0,61947.0,0.0024]
[1728186568926,0.34706564,61948.0,61947.0,0.0024]
[1728186569126,0.70786564,61948.0,61947.0,0.0024]
[1728186569924,0.34706564,61948.0,61947.0,0.0024]
[1728186570125,0.70786564,61948.0,61947.0,0.0024]
[1728186570325,0.70791149,61948.0,61947.0,0.0024]
[1728186571927,0.81791149,61948.0,61947.0,0.0024]
[1728186575040,0.8179006,61948.0,61947.0,0.0024]
[1728186575439,0.8179006,61948.0,61947.0,0.066974]
[1728186575440,0.4486318,61948.0,61947.0,0.066974]
[1728186576336,0.4486318,61948.0,61947.0,0.17441831]
[1728186576337,0.36762204,61948.0,61947.0,0.17441831]
[1728186578337,0.36802204,61948.0,61947.0,0.17441831]
[1728186579832,0.36802204,61948.0,61947.0,0.17441978]
[1728186581138,0.36802204,61948.0,61947.0,0.28441978]
[1728186583236,0.36802204,61948.0,61947.0,0.176974]
[1728186583441,0.00722204,61948.0,61947.0,0.36509014]
[1728186583834,0.00722204,61948.0,61947.0,0.28439331]
[1728186584244,0.00722204,61948.0,61947.0,0.28644836]
[1728186585538,0.00722204,61948.0,61947.0,0.39377121]
[1728186587139,0.00722204,61948.0,61947.0,0.28644836]
[1728186587544,0.00722204,61948.0,61947.0,0.39372677]
[1728186588253,0.00722204,61948.0,61947.0,0.28644836]
[1728186588642,0.00722204,61948.0,61947.0,0.39370394]
[1728186588949,0.0048,61948.0,61947.0,0.39370394]
[1728186589149,0.0048,61948.0,61947.0,0.28644836]
[1728186589348,0.0048,61948.0,61947.0,0.77072836]
[1728186589641,0.0008,61954.0,61951.0,0.064569]
[1728186589850,0.0008,61954.0,61953.0,0.174568]
[1728186590036,0.0008,61954.0,61953.0,0.174968]
[1728186590737,0.0012,61954.0,61953.0,0.174968]
[1728186591244,0.05134074,61954.0,61953.0,0.174968]
[1728186591444,0.14633534,61954.0,61953.0,0.174968]
[1728186591643,0.08315826,61954.0,61953.0,0.174968]
[1728186593248,0.03912526,61954.0,61953.0,0.174968]
[1728186593847,0.03912526,61954.0,61953.0,0.659208]
[1728186594145,0.03852917,61954.0,61953.0,0.659208]
[1728186594944,0.03852917,61954.0,61953.0,1.259208]
[1728186595949,0.03861332,61954.0,61953.0,1.259208]
[1728186596453,0.03861332,61954.0,61953.0,1.620008]
[1728186597159,0.0012,61954.0,61953.0,1.620008]
[1728186602043,0.0012,61954.0,61953.0,0.535768]
[1728186606855,0.04471011,61954.0,61953.0,0.535768]